[Event "GCT Superbet Rapid Poland 2025"]
[Site "Warsaw"]
[Date "2025.04.26"]
[Round "3.3"]
[White "Vachier-Lagrave, Maxime"]
[Black "Topalov, Veselin"]
[Result "0-1"]
[ECO "C77"]
[WhiteElo "2722"]
[BlackElo "2717"]
[Annotator "TA"]
[PlyCount "108"]
[EventDate "2025.??.??"]
[EventType "rapid"]
[TimeControl "1500+10"]

{[%evp 16,108,2,4,16,0,23,19,6,2,10,0,15,17,13,17,16,20,16,15,13,4,26,0,0,0,0,0,0,0,0,0,0,0,0,-33,-27,-36,-37,-41,-41,-54,-20,-32,-38,-222,-215,-217,-217,-230,-195,-230,-171,-197,-75,-163,-89,-169,-108,-165,-88,-83,-104,-132,-133,-116,-128,-105,-112,-157,-148,-151,-142,-193,-184,-224,-170,-175,-172,-174,-166,-184,-156,-179,-187,-216,-210,-268,-279,-278,-277,-337,-329,-626,-619]} 1. e4 {[%emt 0:00:01]} e5 {[%emt 0:00:02]} 2. Nf3 {[%emt 0:00:02]} Nc6 {[%emt 0:00:01]} 3. Bb5 {[%emt 0:00:01]} a6 {[%emt 0:00:02]} 4. Ba4 {[%emt 0:00:02]} Nf6 {[%emt 0:00:03]} 5. O-O {[%emt 0:00:04]} Be7 {[%emt 0:00:09]} 6. d3 {[%emt 0:00:16]} b5 {[%emt 0:00:34]} 7. Bb3 {[%emt 0:00:02]} d6 {[%emt 0:00:23]} 8. a3 {[%emt 0:00:27]} O-O {[%emt 0:00:00]} 9. Nc3 {[%emt 0:00:02]} Rb8 {[%emt 0:00:00] C77: Ruy Lopez: 3...a6 4 Ba4 Nf6, unusual lines.} 10. h3 {[%emt 0:01:26]} h6 {[%emt 0:00:13]} 11. Be3 {[%emt 0:00:32]} ({RR} 11. Re1 Re8 12. Be3 Bf8 13. Qd2 Be6 14. Bxe6 fxe6 15. d4 exd4 16. Nxd4 Ne5 17. f4 Nc4 18. Qf2 Qd7 19. Bc1 c5 20. Nf3 d5 21. e5 Nh7 22. b3 Nb6 23. Bd2 a5 24. Kh1 a4 25. Rad1 axb3 {Yaniv,Y (2410)-Kobo,O (2539) Eilat ISR 2025 ½-½ (66)}) 11... Re8 {[%emt 0:00:17][%cal Bf8e8,Be8e6,Be6f6][%mdl 32] The position is equal.} 12. Qd2 {[%emt 0:00:38][%cal Oe3h6] Threatening Bxh6!.} Bf8 {[%emt 0:00:10]} 13. Rae1 $146 {[%emt 0:00:07]} (13. Rad1 Be6 14. Nd5 Bxd5 15. exd5 Ne7 16. c4 Nf5 17. Ba2 Qd7 18. b4 g6 19. Rfe1 {1-0 Al Tarbosh,W (2281)-Sjugirov,S (2703) Titled Tuesday intern op 14th Nov Early blitz 2023 (4)}) ({RR} 13. Rad1 Be6 14. Nd5 Bxd5 15. exd5 Ne7 16. c4 Nf5 17. Ba2 Qd7 18. b4 g6 19. Rfe1 Bg7 20. c5 dxc5 21. Bxc5 Nxd5 22. g4 Nd4 23. Nxd4 exd4 24. Rxe8+ Rxe8 25. Re1 Nc3 26. Bb3 Rxe1+ 27. Qxe1 Bf6 {Al Tarbosh,W (2281)-Sjugirov,S (2703) chess.com INT 2023 1-0 (38)}) ({RR} 13. Rad1 Be6 14. Nd5 Bxd5 15. exd5 Ne7 16. c4 Nf5 17. Ba2 Qd7 18. b4 g6 19. Rfe1 Bg7 20. c5 dxc5 21. Bxc5 Nxd5 22. g4 Nd4 23. Nxd4 exd4 24. Rxe8+ Rxe8 25. Re1 Nc3 26. Bb3 Rxe1+ 27. Qxe1 Bf6 {Al Tarbosh,W (2281)-Sjugirov,S (2703) chess.com INT 2023 1-0 (38)}) 13... Be6 {[%emt 0:05:01]} 14. Bxe6 {[%emt 0:00:03]} Rxe6 {[%emt 0:00:02]} 15. Nd5 {[%emt 0:00:02]} Ne7 {[%emt 0:00:49]} 16. Nxf6+ {[%emt 0:00:51]} Rxf6 {[%emt 0:00:02]} 17. d4 {[%emt 0:00:46]} Ng6 {[%emt 0:00:15][%cal Of6f3]} 18. Qe2 {[%emt 0:00:18]} Qe8 {[%emt 0:02:01]} 19. d5 {[%emt 0:00:27]} c6 $1 {[%emt 0:00:16]} 20. Rd1 {[%emt 0:00:58]} cxd5 {[%emt 0:02:04]} 21. Rxd5 {[%emt 0:00:05]} Qc6 {[%emt 0:00:28]} 22. Bc1 {[%emt 0:00:34]} Be7 {[%emt 0:01:34][%cal Bf8e7,Be7d8,Bd8b6][%mdl 32]} 23. Rfd1 {[%emt 0:00:06]} Bd8 {[%emt 0:00:38]} 24. g3 {[%emt 0:00:12]} Bb6 {[%emt 0:00:19]} 25. Kg2 {[%emt 0:00:02]} Rf8 {[%emt 0:01:08]} 26. c3 {[%emt 0:02:06]} Ne7 {[%emt 0:00:52]} 27. R5d3 {[%emt 0:00:19]} Re6 {[%emt 0:00:12]} 28. g4 {[%emt 0:00:47] [#]} f5 $1 {[%emt 0:01:15]} 29. gxf5 {[%emt 0:00:03]} Nxf5 {[%emt 0:00:01]} 30. Kh1 $2 {[%emt 0:01:27]} (30. exf5 $15 Rxf5 31. Rd5) 30... Ne7 $19 {[%emt 0:00:51]} 31. Rg1 {[%emt 0:00:19]} Ref6 {[%emt 0:00:59]} 32. Rg3 {[%emt 0:00:01]} Kh7 {[%emt 0:00:50]} 33. Rd1 {[%emt 0:00:27]} R8f7 {[%emt 0:00:41]} 34. h4 {[%emt 0:01:23]} Qa8 {[%emt 0:01:47]} (34... Ng6 $19 {[%cal Ob6f2]} 35. h5 Nf4 36. Bxf4 Rxf4) 35. h5 {[%emt 0:01:34]} (35. Bg5 $17 Re6 (35... hxg5 36. Nxg5+ Kg8 37. Nxf7 $11) 36. Bxe7 Rfxe7 37. Ne1) 35... Qe8 {[%emt 0:00:46][%csl Of2] Black attacks a weakness} (35... Kg8 $19 {[%cal Ob6f2]} 36. Rdg1 Qf8) 36. Kg2 {[%emt 0:00:15] [#]} (36. Be3 $17 {was worth a try.} Bxe3 37. fxe3) 36... Rf8 {[%emt 0:00:18]} (36... d5 $1 $19 37. Re1 (37. exd5 $2 Nf5 $19) 37... d4) 37. Rh1 {[%emt 0:00:19]} (37. Be3 $17 Bxe3 38. Qxe3) 37... Qc6 {[%emt 0:01:02]} (37... d5 $19 {...dxe4 would now be deadly.} 38. Re1 (38. exd5 $2 Nf5 $19) 38... Kg8 (38... Qxh5 $2 39. exd5 Ng6 40. Rh1 $19)) 38. Rh4 $17 {[%emt 0:02:02]} R6f7 {[%emt 0:00:02]} 39. Be3 {[%emt 0:01:08]} Bxe3 {[%emt 0:00:22]} 40. Qxe3 {[%emt 0:00:01]} Ng8 {[%emt 0:00:05][%cal Be7g8,Bg8f6,Bf6d7,Bd7c5,Bc5e6,Be6f4][%mdl 32]} 41. Qd3 {[%emt 0:01:50]} Nf6 {[%emt 0:01:21]} 42. Nd2 {[%emt 0:00:09]} Nd7 {[%emt 0:00:13]} 43. f3 {[%emt 0:00:21]} Nc5 {[%emt 0:00:03]} 44. Qc2 {[%emt 0:02:10]} (44. Qd5 $17 Qe8 45. Rg6) 44... Ne6 $19 {[%emt 0:00:05]} 45. Qd1 {[%emt 0:01:11]} Nf4+ {[%emt 0:00:08]} 46. Kh1 {[%emt 0:00:08]} Qc5 {[%emt 0:00:25]} 47. Rh2 {[%emt 0:00:14]} Ne6 {[%emt 0:00:25]} 48. Qg1 {[%emt 0:01:18]} Qc8 {[%emt 0:00:28]} 49. Rg6 {[%emt 0:00:44]} Rf6 {[%emt 0:00:17]} 50. Qg4 {[%emt 0:00:56]} Qe8 {[%emt 0:00:07]} 51. Rxf6 {[%emt 0:00:18]} Rxf6 {[%emt 0:00:01]} 52. Qg1 {[%emt 0:00:15]} Qf7 {[%emt 0:00:09]} 53. Qg3 {[%emt 0:00:33]} Ng5 {[%emt 0:00:08]} 54. Kg2 $2 {[%emt 0:00:04]} (54. Qg1) 54... Qa2 {[%emt 0:00:04] Weighted Error Value: White=0.28 (precise) /Black=0.19 (very precise) Loses game: 	White=1 	--- Mistake: 	White=5 	Black=4 Inaccurate: 	White=3 	--- OK: 	White=13 	Black=23 Best: 	White=2 	Black=1 Strong: 	--- 	Black=1} 0-1

[Event "GCT Superbet Rapid Poland 2025"]
[Site "Warsaw"]
[Date "2025.04.26"]
[Round "3.4"]
[White "Duda, Jan-Krzysztof"]
[Black "Fedoseev, Vladimir"]
[Result "0-1"]
[ECO "D31"]
[WhiteElo "2739"]
[BlackElo "2739"]
[Annotator "TA"]
[PlyCount "130"]
[EventDate "2025.??.??"]
[EventType "rapid"]
[TimeControl "1500+10"]

{[%evp 9,130,17,33,30,25,22,19,27,25,20,29,21,20,10,17,14,34,22,20,9,15,-12,0,-18,0,-16,0,-15,0,-6,-4,-65,-56,-60,-45,-108,-109,-107,-105,-122,-63,-57,-22,-24,-22,-23,-24,-31,-21,-18,-11,0,0,-9,-13,-58,-68,-58,-82,-78,-52,-129,-105,-106,-106,-112,-105,-108,-84,-91,-84,-110,-105,-104,-84,-86,-75,-110,-112,-91,-86,-122,-82,-140,-129,-163,-160,-154,-142,-182,-176,-253,-223,-312,-292,-434,-434,-434,-434,-424,-402,-372,-335,-728,-705,-580,-611,-4627,-4627,-4627,-4627,-4627,-4627,-4627,-4627,-4627,-4627,-4614,-4614,-3537,-3209,-1429,-1291]} 1. d4 {[%emt 0:00:03]} d5 {[%emt 0:00:09]} 2. c4 {[%emt 0:00:03]} e6 {[%emt 0:00:24]} 3. Nf3 {[%emt 0:00:07]} a6 {[%emt 0:00:25]} 4. cxd5 {[%emt 0:00:24]} exd5 {[%emt 0:00:02]} 5. Nc3 {[%emt 0:00:13]} Be7 {[%emt 0:00:14]} 6. Bf4 {[%emt 0:00:39] D31: Queen's Gambit Declined: Semi-Slav without ...Nf6 (+ Marshall Gambit and Noteboom) and Exchange Variation lines without ...Nf6.} Nf6 {[%emt 0:00:05]} 7. e3 {[%emt 0:00:06]} Nh5 $5 {[%emt 0:00:03][%mdl 4] Leaves trodden paths.} 8. Be5 {[%emt 0:01:04] The position is equal.} c6 {[%emt 0:00:03]} 9. h3 {[%emt 0:00:25]} (9. Nd2 $5 Nf6 $8 10. Bd3 $11) 9... Nd7 {[%emt 0:01:56][%cal Bb8d7,Bd7b6,Bb6c4][%mdl 32]} 10. Bh2 {[%emt 0:00:12]} O-O {[%emt 0:00:30]} 11. Bd3 {[%emt 0:00:07]} g6 {[%emt 0:00:33]} 12. Qc2 {[%emt 0:02:29]} a5 $146 {[%emt 0:00:07]} (12... Ng7 13. Bf4 Re8 14. Bh6 Nf6 15. g4 c5 16. dxc5 Bxc5 17. O-O-O Be6 18. Nd4 Bb4 {0-1 Gumularz,S (2591)-Svane,F (2654) EU-ch 25th Eforie Nord 2025 (10)}) ({RR} 12... Ng7 13. Bf4 Re8 14. Bh6 Nf6 15. g4 c5 16. dxc5 Bxc5 17. O-O-O Be6 18. Nd4 Bb4 19. Kb1 Rc8 20. f4 Bd7 21. f5 Bxc3 22. bxc3 Ne4 23. Bxe4 Rxe4 24. Rhf1 gxf5 25. Bxg7 Kxg7 26. gxf5 Rxe3 27. Qf2 {Gumularz,S (2591)-Svane,F (2654) Eforie Nord ROU 2025 0-1 (42)}) 13. O-O {[%emt 0:00:48]} Ng7 {[%emt 0:01:06]} 14. Rab1 {[%emt 0:00:46]} Nb6 {[%emt 0:00:25]} 15. Ne2 {[%emt 0:02:18]} Bf5 {[%emt 0:01:37]} 16. Nf4 {[%emt 0:00:02]} Nc4 {[%emt 0:00:17]} 17. Rfc1 {[%emt 0:01:29]} Nd6 {[%emt 0:00:49]} 18. Nd2 {[%emt 0:01:30]} Re8 {[%emt 0:00:20]} 19. a4 {[%emt 0:00:29]} Bf8 {[%emt 0:01:11]} 20. b4 {[%emt 0:01:49]} (20. Bxf5 $11 Ndxf5 21. Nd3) 20... axb4 $1 $15 {[%emt 0:01:50]} 21. Rxb4 {[%emt 0:04:32]} Qa5 $1 {[%emt 0:00:05]} 22. Rbb1 {[%emt 0:00:41]} (22. Rcb1 $15) 22... Qxa4 $17 {[%emt 0:00:08]} 23. g4 {[%emt 0:01:29]} Qxc2 {[%emt 0:01:32]} 24. Rxc2 {[%emt 0:00:07]} Bd7 {[%emt 0:00:38]} (24... Bxd3 $17 25. Nxd3 Nb5) 25. Rb6 $15 {[%emt 0:00:35][%cal Of4d5]} Rec8 {[%emt 0:01:09]} 26. Nb3 {[%emt 0:00:55]} (26. Nxd5 cxd5 27. Bxd6 Rxc2 28. Bxc2 Bxd6 29. Rxd6 Bc6 $17) 26... Nge8 $1 {[%emt 0:00:53]} 27. Nc5 {[%emt 0:00:59][%csl Bb7,Bd7]} Rc7 {[%emt 0:00:03]} 28. f3 {[%emt 0:00:14]} Bc8 {[%emt 0:04:41]} 29. e4 {[%emt 0:00:50]} dxe4 {[%emt 0:00:09]} 30. fxe4 {[%emt 0:00:02]} Ng7 {[%emt 0:00:26]} 31. Rcb2 {[%emt 0:01:21]} Ra3 {[%emt 0:01:37]} 32. Nd5 {[%emt 0:01:37]} cxd5 {[%emt 0:01:46]} 33. Bxd6 {[%emt 0:00:02]} Bxd6 {[%emt 0:00:58]} (33... Rxc5 34. dxc5 Rxd3 35. Bxf8 Kxf8 36. c6 $17) 34. Rxd6 {[%emt 0:00:01]} Ne6 {[%emt 0:00:01] Repels Rd8+} 35. Rxd5 {[%emt 0:02:09] [#]} ({White should play} 35. Nxe6 $1 $15 Bxe6 36. Bf1) 35... Nxd4 $1 {[%emt 0:00:20][%mdl 512]} 36. Rxd4 {[%emt 0:00:16]} (36. Bf1 Kg7) 36... Rxc5 {[%emt 0:00:03]} 37. Bf1 {[%emt 0:00:10]} Kg7 {[%emt 0:00:31]} 38. Rd5 {[%emt 0:00:08]} Rc7 {[%emt 0:00:32]} 39. Rdb5 {[%emt 0:00:11]} Ra7 {[%emt 0:00:45]} 40. e5 {[%emt 0:00:03]} Bd7 {[%emt 0:01:04]} 41. Rb6 {[%emt 0:00:02]} Bc6 {[%emt 0:00:08]} 42. Bg2 {[%emt 0:00:14]} Ra3 {[%emt 0:00:45]} 43. R6b3 {[%emt 0:00:27]} Ra5 {[%emt 0:00:10]} 44. Bxc6 {[%emt 0:00:09]} bxc6 $17 {[%emt 0:00:02][%mdl 4096] Endgame KRR-KRR. Black is a pawn up.} 45. Re3 {[%emt 0:00:05]} Rd5 {[%emt 0:01:03]} 46. Rc2 {[%emt 0:00:13]} (46. Kf2 $142) 46... c5 {[%emt 0:00:03]} 47. e6 {[%emt 0:00:09] [#]} fxe6 {[%emt 0:00:24]} ({Don't do} 47... Re7 48. Rec3 $17) 48. Rxe6 {[%emt 0:00:01]} Rd3 {[%emt 0:00:02]} 49. Rc4 {[%emt 0:00:23]} Rxh3 {[%emt 0:00:13]} 50. Kg2 {[%emt 0:00:09] [#]} (50. Kf2 {is a better defense.}) 50... Rb3 $1 $19 {[%emt 0:00:36]} 51. Re5 {[%emt 0:00:10]} Rb4 {[%emt 0:00:04]} 52. Rxb4 {[%emt 0:00:09]} (52. Ree4 $142 Rxc4 53. Rxc4) 52... cxb4 {[%emt 0:00:01] KR-KR. Black is two pawns up.} 53. Rb5 {[%emt 0:00:01] Dodges Rb7} Rc4 {[%emt 0:00:07]} 54. g5 {[%emt 0:00:10]} Kf7 {[%emt 0:00:06]} 55. Kf3 {[%emt 0:00:10]} Ke6 {[%emt 0:00:02]} 56. Rb7 $2 {[%emt 0:00:10]} (56. Ke3) 56... Ke5 {[%emt 0:00:29] Black is clearly winning.} 57. Ke3 {[%emt 0:00:21]} Kf5 {[%emt 0:00:20]} 58. Rxh7 {[%emt 0:00:10]} Kxg5 {[%emt 0:00:02]} 59. Kd3 {[%emt 0:00:11]} Rf4 {[%emt 0:00:03]} 60. Rb7 {[%emt 0:00:08]} Kg4 {[%emt 0:00:04]} 61. Ke2 {[%emt 0:00:04]} g5 {[%emt 0:00:04]} 62. Rb5 {[%emt 0:00:02]} Kh4 {[%emt 0:00:10] ...g4 would now be deadly.} 63. Ke3 {[%emt 0:00:01]} Rc4 {[%emt 0:00:13]} 64. Kd3 {[%emt 0:00:01]} Rg4 {[%emt 0:00:09]} 65. Ke2 {[%emt 0:00:15]} Rg2+ {[%emt 0:00:03] Weighted Error Value: White=0.39/Black=0.07 (flawless) Mistake: 	White=7 	Black=1 Inaccurate: 	White=6 	Black=3 OK: 	White=13 	Black=19 Best: 	--- 	Black=6 Strong: 	--- 	Black=4} 0-1

[Event "GCT Superbet Rapid Poland 2025"]
[Site "Warsaw"]
[Date "2025.04.26"]
[Round "3.5"]
[White "Gavrilescu, David"]
[Black "Firouzja, Alireza"]
[Result "1/2-1/2"]
[ECO "B11"]
[WhiteElo "2554"]
[BlackElo "2757"]
[Annotator "TA"]
[PlyCount "144"]
[EventDate "2025.??.??"]
[EventType "rapid"]
[TimeControl "1500+10"]

{[%evp 9,144,38,52,33,39,45,52,24,22,30,-1,3,27,-20,11,47,41,36,60,0,31,16,79,9,27,11,17,34,22,20,20,0,6,0,0,0,6,0,67,74,73,46,53,29,33,37,74,57,88,88,81,32,70,63,78,79,99,97,124,0,94,87,99,99,152,95,88,94,90,91,84,84,89,97,103,103,104,104,106,106,106,108,109,101,99,90,95,87,81,56,110,110,110,103,103,103,117,103,125,125,125,125,125,102,102,102,102,102,102,83,102,102,102,102,102,97,97,97,100,63,139,102,102,102,102,102,102,102,102,0,0,0,102,102,102,0,103]} 1. e4 {[%emt 0:00:06]} c6 {[%emt 0:00:01]} 2. Nf3 {[%emt 0:00:08]} d5 {[%emt 0:00:02]} 3. Nc3 {[%emt 0:00:06]} dxe4 {[%emt 0:00:17]} 4. Nxe4 {[%emt 0:00:06]} Nf6 {[%emt 0:00:05]} 5. Qe2 {[%emt 0:00:18]} Bf5 {[%emt 0:00:05]} 6. Nxf6+ {[%emt 0:00:50] B11: Caro-Kann: Two Knights Variation.} gxf6 {[%emt 0:00:03]} 7. d3 $1 {[%emt 0:00:07] The main line 7.d3 scores better than 7.d4.} c5 {[%emt 0:00:03]} ({RR} 7... Nd7 8. g3 e5 9. Bg2 Qc7 10. O-O h5 11. Rb1 O-O-O 12. b4 Nb6 13. Rb3 Bg4 14. c4 h4 15. h3 Bh5 16. g4 Bg6 17. Be3 Kb8 18. a4 Nc8 19. a5 Qd7 20. Rd1 Bg7 21. b5 c5 22. Bxc5 {Aronian,L (2729)-Firouzja,A (2751) Saint Louis USA 2024 1-0}) 8. c3 $146 {[%emt 0:02:28] White is slightly better.} (8. g3 Nc6 9. Bg2 Qd7 10. O-O O-O-O 11. Be3 e5 12. Nd2 Nd4 13. Bxd4 cxd4 14. a4 {1-0 Praggnanandhaa,R (2608)-Ovetchkin,R (2518) Titled Tuesday intern op 22nd Sept blitz 2020 (4)}) ({RR} 8. g3 Nc6 9. Bg2 Qd7 10. Be3 Nd4 11. Qd1 Rc8 12. c3 Nxf3+ 13. Qxf3 b6 14. d4 Bg4 15. Qe4 Bh5 16. O-O cxd4 17. Bxd4 Bg7 18. Rfe1 e5 19. Qh4 Qg4 20. Qxg4 Bxg4 21. a4 O-O 22. Be3 Rb8 {Baskin,R (2390)-Donchenko,A (2657) Magdeburg 2020 0-1 (36)}) ({RR} 8. g3 Nc6 9. Bg2 Qd7 10. Be3 e5 11. O-O Be7 12. Nh4 Bg4 13. Bf3 h5 14. Bxg4 hxg4 15. Ng2 O-O-O 16. a3 Qf5 17. f3 Qh7 18. Ne1 gxf3 19. Nxf3 Rdg8 20. b4 cxb4 21. axb4 Bxb4 22. d4 e4 {Schmider,N (2395)-Kosteniuk,A (2484) chess.com INT 2025 0-1 (37)}) ({RR} 8. g3 Nc6 9. Bg2 Qd7 10. Be3 Nd4 11. Qd1 Rc8 12. c3 Nxf3+ 13. Qxf3 b6 14. d4 Bg4 15. Qe4 Bh5 16. O-O cxd4 17. Bxd4 Bg7 18. Rfe1 e5 19. Qh4 Qg4 20. Qxg4 Bxg4 21. a4 O-O 22. Be3 Rb8 {Baskin,R (2390)-Donchenko,A (2657) Magdeburg 2020 0-1 (36)}) ({RR} 8. g3 Nc6 9. Bg2 Qd7 10. Be3 Nd4 11. Bxd4 cxd4 12. O-O Rc8 13. Rae1 Bg4 14. Qd2 Bg7 15. Qb4 Bxf3 16. Bxf3 e6 17. Re2 b6 18. Rfe1 f5 19. Bh5 Rc6 20. a4 a5 21. Qa3 Qe7 22. Bf3 Rd6 {Fedorchuk,S (2604)-Buckels,V (2454) Germany 2022 1-0 (40)}) 8... Nc6 {[%emt 0:00:33] Against d4} 9. Be3 {[%emt 0:00:21]} e5 {[%emt 0:02:23]} 10. Nd2 {[%emt 0:04:07]} Bg6 {[%emt 0:01:02]} 11. Rd1 {[%emt 0:00:22]} (11. Qf3 {was preferable.}) 11... Qd7 {[%emt 0:06:18]} 12. Ne4 {[%emt 0:04:54]} O-O-O {[%emt 0:00:05][%cal Oc5c4]} 13. Nxc5 {[%emt 0:02:50]} (13. Nxf6 Qe6 14. Ne4 c4 $11) 13... Qd5 {[%emt 0:06:22][%csl Ba2,Bc5] Black sacrificed a pawn} 14. b4 {[%emt 0:01:42]} (14. Nb3 $14) 14... Bxc5 {[%emt 0:01:21]} 15. Bxc5 {[%emt 0:00:58] A sharp opening} Rhe8 {[%emt 0:00:12] [#]} (15... Rd7 $11 {remains equal.}) 16. Qg4+ {[%emt 0:00:33]} (16. f3 $1 $16) 16... f5 {[%emt 0:02:44]} 17. Qc4 {[%emt 0:03:39]} f4 {[%emt 0:01:12]} 18. Qxd5 {[%emt 0:03:39]} (18. Bxa7 $2 Qxc4 19. dxc4 Nxa7 $19 (19... Rxd1+ $2 20. Kxd1 Nxa7 21. Kc1 $19)) 18... Rxd5 {[%emt 0:00:02]} 19. f3 {[%emt 0:00:13]} Kc7 {[%emt 0:02:29]} 20. Be2 {[%emt 0:00:12]} Red8 {[%emt 0:00:06]} 21. g3 {[%emt 0:00:30]} Bxd3 {[%emt 0:00:17]} 22. Rg1 {[%emt 0:00:08]} ({Much worse is} 22. c4 Bxc4 23. Rxd5 Bxd5 $15) 22... b6 {[%emt 0:01:53]} 23. Bf2 {[%emt 0:00:02] Not much happening anymore} Bc4 {[%emt 0:00:46]} 24. Rxd5 $14 {[%emt 0:00:08]} Bxd5 {[%emt 0:00:01]} 25. a3 {[%emt 0:00:07]} Re8 {[%emt 0:00:20]} 26. Kd2 {[%emt 0:00:05]} Rd8 {[%emt 0:00:25]} 27. Kc1 {[%emt 0:00:05]} fxg3 {[%emt 0:00:12]} 28. hxg3 {[%emt 0:00:34]} e4 {[%emt 0:00:09]} 29. fxe4 {[%emt 0:00:16]} Bxe4 {[%emt 0:00:01]} 30. Be3 {[%emt 0:00:05]} (30. g4 $16) 30... Re8 {[%emt 0:00:27]} 31. Bf4+ {[%emt 0:00:07]} Kb7 {[%emt 0:00:00]} 32. Rd1 {[%emt 0:00:06]} Re7 {[%emt 0:00:16] Wards off Rd7+} 33. Bg5 {[%emt 0:00:26] A strong pair of Bishops.} Rc7 {[%emt 0:00:03]} 34. Bf4 {[%emt 0:00:03]} Re7 {[%emt 0:00:00]} 35. Bc4 {[%emt 0:00:16]} f5 {[%emt 0:00:22]} 36. Rd6 {[%emt 0:00:09]} Rc7 {[%emt 0:00:20]} (36... Ne5 $142 37. Bb5 h5) 37. Rf6 {[%emt 0:00:10]} (37. Be6 $142) 37... Ne5 $16 {[%emt 0:00:09]} 38. Bxe5 {[%emt 0:00:19]} Rxc4 {[%emt 0:00:01][%mdl 4096] Endgame KRB-KRB} 39. Rf7+ {[%emt 0:00:09]} Ka8 {[%emt 0:00:19]} 40. Rxh7 {[%emt 0:00:12]} Rc8 {[%emt 0:00:00]} 41. Re7 {[%emt 0:00:05]} Bc6 {[%emt 0:00:03]} 42. Rf7 {[%emt 0:00:03]} Be4 {[%emt 0:00:02]} 43. a4 {[%emt 0:00:02]} Re8 {[%emt 0:00:06]} 44. Bf4 {[%emt 0:00:09]} Rc8 {[%emt 0:00:24]} 45. Kb2 {[%emt 0:00:02]} a6 {[%emt 0:00:02]} 46. Re7 {[%emt 0:00:25]} Bd3 {[%emt 0:00:11]} 47. Be3 {[%emt 0:00:17]} Rc6 {[%emt 0:00:06]} 48. Rd7 {[%emt 0:00:03]} Bc4 {[%emt 0:00:06]} 49. Bf4 {[%emt 0:00:14]} b5 {[%emt 0:00:18]} (49... Re6 $14) 50. a5 {[%emt 0:00:15]} Re6 {[%emt 0:00:06]} 51. Kc2 {[%emt 0:00:06]} Re2+ {[%emt 0:00:13]} 52. Kd1 {[%emt 0:00:01]} Re8 {[%emt 0:00:04] Wards off Rd8+} 53. Rd6 {[%emt 0:00:10]} Kb7 {[%emt 0:00:29]} 54. Rb6+ {[%emt 0:00:01]} Ka7 55. Rf6 {[%emt 0:00:06]} Be6 {[%emt 0:00:01]} 56. Be3+ {[%emt 0:00:08]} Kb7 {[%emt 0:00:02]} 57. Kd2 {[%emt 0:00:03]} Kc6 {[%emt 0:00:03]} 58. Rh6 {[%emt 0:00:06]} Kd5 {[%emt 0:00:09]} 59. Rh4 {[%emt 0:00:08]} Kc6 {[%emt 0:00:13]} 60. Rh7 {[%emt 0:00:09]} Kd5 {[%emt 0:00:33]} 61. Kd3 {[%emt 0:00:48]} Kc6 {[%emt 0:00:30][%cal Of5f4] [#] And now ...f4! would win.} 62. Ra7 {[%emt 0:00:16]} Bc8 {[%emt 0:00:02]} 63. Rg7 {[%emt 0:00:03]} Be6 {[%emt 0:00:05]} 64. Kd4 {[%emt 0:00:14]} Rg8 {[%emt 0:00:06]} (64... Bc4 $14 65. Rg6+ Re6 66. Rxe6+ Bxe6) 65. Re7 {[%emt 0:00:13]} Bd7 {[%emt 0:00:17]} 66. Bf4 {[%emt 0:00:05]} Re8 {[%emt 0:00:01]} 67. Rf7 {[%emt 0:00:19] White is much more active.} Re4+ {[%emt 0:00:05]} 68. Kd3 {[%emt 0:00:01]} Re8 {[%emt 0:00:01]} 69. Kd4 {[%emt 0:00:14]} Re4+ {[%emt 0:00:14]} 70. Kd3 {[%emt 0:00:01]} Re8 $1 {[%emt 0:00:03]} 71. Rg7 {[%emt 0:00:04]} Re4 {[%emt 0:00:12]} 72. Rf7 {[%emt 0:00:26]} Re8 $1 {[%emt 0:00:18] Weighted Error Value: White=0.13 (very precise) /Black=0.15 (very precise) Mistake: 	White=5 	Black=5 Inaccurate: 	White=3 	Black=5 OK: 	White=29 	Black=28 Best: 	White=2 	Black=3 Strong: 	--- 	Black=2} 1/2-1/2